[Event "41st Jacques-Lemans-Open 2022"]
[Site "St. Veit/Glan"]
[Date "2022.07.13"]
[Round "6.21"]
[White "Bratko, Alexander"]
[Black "Moeller, Dustin"]
[Result "0-1"]
[ECO "B31"]
[WhiteElo "1982"]
[BlackElo "2237"]
[Annotator "ChessBase"]
[PlyCount "62"]
[EventDate "2022.07.09"]
[EventType "swiss"]
[EventCountry "AUT"]
[SourceTitle "playchess.com"]
[Source "ChessBase"]
[SourceQuality "1"]
[TimeControl "40/5400+30:1800+30"]

1. e4 {[%emt 0:00:03]} c5 {[%emt 0:00:09]} 2. Nf3 {[%emt 0:00:05]} Nc6 {[%emt 0:00:06]} 3. Bb5 {[%emt 0:00:04]} g6 {[%emt 0:00:08]} 4. Bxc6 {[%emt 0:00:05]} dxc6 {[%emt 0:00:09]} 5. d3 {[%emt 0:00:15]} Bg7 {[%emt 0:00:06]} 6. h3 {[%emt 0:00:03]} Qc7 {[%emt 0:00:07]} 7. O-O {[%emt 0:01:05]} e5 {[%emt 0:00:15]} 8. Be3 {[%emt 0:01:32]} b6 {[%emt 0:00:08]} 9. Nc3 {[%emt 0:01:15]} Nf6 {[%emt 0:00:44]} 10. Qd2 {[%emt 0:01:52]} Nh5 {[%emt 0:00:12]} 11. Bh6 {[%emt 0:03:17]} f6 {[%emt 0:00:06]} 12. Bxg7 {[%emt 0:02:08]} Qxg7 {[%emt 0:00:08]} 13. Ne2 {[%emt 0:15:34]} g5 {[%emt 0:00:07]} 14. Nh2 {[%emt 0:08:21]} Nf4 {[%emt 0:06:41]} 15. Nxf4 {[%emt 0:00:14]} gxf4 {[%emt 0:00:08]} 16. Qe2 {[%emt 0:00:42]} Rg8 {[%emt 0:04:57]} 17. Qf3 {[%emt 0:00:06]} Be6 {[%emt 0:00:58]} 18. Kh1 {[%emt 0:03:28]} O-O-O {[%emt 0:05:08]} 19. a4 {[%emt 0:04:52]} c4 {[%emt 0:02:18]} 20. dxc4 {[%emt 0:02:10]} Bxc4 {[%emt 0:00:07]} 21. Rg1 {[%emt 0:05:03]} f5 {[%emt 0:08:45]} 22. Qc3 {[%emt 0:02:23]} Rd4 {[%emt 0:00:06]} 23. b3 {[%emt 0:02:42]} Ba6 {[%emt 0:00:45]} 24. a5 {[%emt 0:01:14]} Bb7 {[%emt 0:02:08]} 25. axb6 {[%emt 0:02:03]} axb6 {[%emt 0:00:16]} 26. exf5 {[%emt 0:05:25]} e4 {[%emt 0:03:07]} 27. f6 {[%emt 0:01:44]} Qxf6 {[%emt 0:02:00]} 28. Rad1 {[%emt 0:02:55]} Rd6 {[%emt 0:05:41]} 29. Qxf6 {[%emt 0:00:23]} Rxf6 {[%emt 0:00:05]} 30. Rd2 {[%emt 0:10:27]} c5 {[%emt 0:02:54]} 31. Ng4 {[%emt 0:07:36]} Rxg4 {[%emt 0:00:12]} 0-1

[Event "41st Jacques-Lemans-Open 2022"]
[Site "St. Veit/Glan"]
[Date "2022.07.13"]
[Round "6.22"]
[White "Schein, Karl-Heinz"]
[Black "Gruenwald, Simon"]
[Result "1/2-1/2"]
[ECO "E98"]
[WhiteElo "2167"]
[BlackElo "1762"]
[Annotator "ChessBase"]
[PlyCount "90"]
[EventDate "2022.07.09"]
[EventType "swiss"]
[EventCountry "AUT"]
[SourceTitle "playchess.com"]
[Source "ChessBase"]
[SourceQuality "1"]
[TimeControl "40/5400+30:1800+30"]

1. d4 {[%emt 0:00:05]} Nf6 {[%emt 0:00:13]} 2. c4 {[%emt 0:00:17]} g6 {[%emt 0:00:07]} 3. Nc3 {[%emt 0:00:16]} Bg7 {[%emt 0:00:20]} 4. e4 {[%emt 0:00:13]} d6 {[%emt 0:00:10]} 5. Be2 {[%emt 0:00:17]} O-O {[%emt 0:00:12]} 6. Nf3 {[%emt 0:00:16]} e5 {[%emt 0:00:15]} 7. O-O {[%emt 0:00:57]} Nc6 {[%emt 0:00:04]} 8. d5 {[%emt 0:00:20]} Ne7 {[%emt 0:00:08]} 9. Ne1 {[%emt 0:00:42]} Ne8 {[%emt 0:00:41]} 10. Nd3 {[%emt 0:03:19]} f5 {[%emt 0:01:12]} 11. f3 {[%emt 0:01:23]} f4 {[%emt 0:08:02]} 12. c5 {[%emt 0:01:45]} h5 {[%emt 0:01:59]} 13. Bd2 {[%emt 0:00:50]} g5 {[%emt 0:01:19]} 14. Rc1 {[%emt 0:00:43]} Rf7 {[%emt 0:01:06]} 15. cxd6 {[%emt 0:00:31]} cxd6 {[%emt 0:00:15]} 16. Nf2 {[%emt 0:03:28]} Nf6 {[%emt 0:05:50]} 17. h3 {[%emt 0:07:10]} Ng6 {[%emt 0:00:54]} 18. Nb5 {[%emt 0:00:31]} Bf8 {[%emt 0:14:54]} 19. Qc2 {[%emt 0:01:36]} g4 {[%emt 0:13:09]} 20. hxg4 {[%emt 0:02:18]} hxg4 {[%emt 0:10:09]} 21. fxg4 {[%emt 0:00:15]} Ne8 {[%emt 0:10:59]} 22. Qb3 {[%emt 0:08:48]} f3 {[%emt 0:17:35]} 23. Bxf3 {[%emt 0:01:04]} Qh4 {[%emt 0:10:25]} 24. Rc3 {[%emt 0:03:07]} Rh7 {[%emt 0:01:56]} 25. Nh3 {[%emt 0:00:42]} Nf4 {[%emt 0:00:27]} 26. Bxf4 {[%emt 0:02:07]} exf4 {[%emt 0:00:02]} 27. Be2 {[%emt 0:17:05]} Bg7 {[%emt 0:00:39]} 28. Qd1 {[%emt 0:08:28]} Bxc3 {[%emt 0:00:41]} 29. Nxc3 {[%emt 0:01:37]} Qg3 {[%emt 0:00:06]} 30. Rf3 {[%emt 0:00:59]} Qxg4 {[%emt 0:00:35]} 31. Rxf4 {[%emt 0:02:20]} Qg3 {[%emt 0:00:54]} 32. Rf3 {[%emt 0:00:59]} Qg7 {[%emt 0:00:12]} 33. Qd3 {[%emt 0:03:06]} Rxh3 {[%emt 0:00:38]} 34. Rxh3 {[%emt 0:00:06]} Bxh3 {[%emt 0:00:03]} 35. Qxh3 {[%emt 0:00:06]} Qd4+ {[%emt 0:00:03]} 36. Kh1 {[%emt 0:00:31]} Qh8 {[%emt 0:01:31]} 37. Bh5 {[%emt 0:03:04]} Ng7 {[%emt 0:00:07]} 38. g4 {[%emt 0:00:09]} Nxh5 {[%emt 0:00:09]} 39. gxh5 {[%emt 0:00:05]} Qe5 {[%emt 0:00:12]} 40. Qg4+ {[%emt 0:01:01]} Kh8 {[%emt 0:00:09]} 41. Qg6 {[%emt 0:31:16]} Qg7 {[%emt 0:05:10]} 42. Qxg7+ {[%emt 0:00:00]} Kxg7 {[%emt 0:00:18]} 43. Nb5 {[%emt 0:00:00]} Rd8 {[%emt 0:12:01]} 44. Kg2 {[%emt 0:00:00]} a6 {[%emt 0:02:21]} 45. Nd4 {[%emt 0:00:00]} Kf6 {[%emt 0:05:16]} 1/2-1/2

[Event "41st Jacques-Lemans-Open 2022"]
[Site "St. Veit/Glan"]
[Date "2022.07.13"]
[Round "6.23"]
[White "Besner, Bernhard"]
[Black "Tumanyan, Gor"]
[Result "1/2-1/2"]
[ECO "B27"]
[WhiteElo "2164"]
[BlackElo "1884"]
[Annotator "ChessBase"]
[PlyCount "62"]
[EventDate "2022.07.09"]
[EventType "swiss"]
[EventCountry "AUT"]
[SourceTitle "playchess.com"]
[Source "ChessBase"]
[SourceQuality "1"]
[TimeControl "40/5400+30:1800+30"]

1. e4 {[%emt 0:00:06]} c5 {[%emt 0:00:04]} 2. Nf3 {[%emt 0:01:10]} g6 {[%emt 0:00:09]} 3. c3 {[%emt 0:00:38]} Bg7 {[%emt 0:02:28]} 4. d4 {[%emt 0:00:19]} cxd4 {[%emt 0:00:10]} 5. cxd4 {[%emt 0:00:27]} d5 {[%emt 0:12:01]} 6. Bb5+ {[%emt 0:03:03]} Bd7 {[%emt 0:00:45]} 7. Bxd7+ {[%emt 0:00:34]} Nxd7 {[%emt 0:06:45]} 8. e5 {[%emt 0:01:22]} e6 {[%emt 0:06:43]} 9. O-O {[%emt 0:00:39]} Ne7 {[%emt 0:00:27]} 10. Nc3 {[%emt 0:00:27]} a6 {[%emt 0:00:49]} 11. Bg5 {[%emt 0:02:11]} h6 {[%emt 0:01:52]} 12. Be3 {[%emt 0:03:46]} Nf5 {[%emt 0:03:56]} 13. Rc1 {[%emt 0:01:58]} O-O {[%emt 0:37:31]} 14. h3 {[%emt 0:07:32]} f6 {[%emt 0:05:18]} 15. Bf4 {[%emt 0:09:01]} fxe5 {[%emt 0:01:52]} 16. Bxe5 {[%emt 0:00:39]} Bxe5 {[%emt 0:01:23]} 17. dxe5 {[%emt 0:00:40]} Nh4 {[%emt 0:02:07]} 18. Nd4 {[%emt 0:09:14]} Qg5 {[%emt 0:02:47]} 19. Qg4 {[%emt 0:01:37]} Qxg4 {[%emt 0:05:49]} 20. hxg4 {[%emt 0:00:20]} Rae8 {[%emt 0:01:51]} 21. f4 {[%emt 0:02:45]} g5 {[%emt 0:00:39]} 22. g3 {[%emt 0:02:25]} Ng6 {[%emt 0:00:11]} 23. f5 {[%emt 0:08:02]} exf5 {[%emt 0:00:21]} 24. gxf5 {[%emt 0:00:47]} Ngxe5 {[%emt 0:00:18]} 25. Nxd5 {[%emt 0:01:35]} Nf6 {[%emt 0:03:24]} 26. Nc7 {[%emt 0:01:14]} Rc8 {[%emt 0:01:00]} 27. Nce6 {[%emt 0:00:26]} Rfe8 {[%emt 0:00:19]} 28. Nc7 {[%emt 0:09:35]} Red8 {[%emt 0:00:32]} 29. Nce6 {[%emt 0:06:21]} Re8 {[%emt 0:00:15]} 30. Nc7 {[%emt 0:03:21]} Red8 {[%emt 0:00:04]} 31. Nce6 {[%emt 0:00:53]} Re8 {[%emt 0:00:05]} 1/2-1/2

[Event "41st Jacques-Lemans-Open 2022"]
[Site "St. Veit/Glan"]
[Date "2022.07.13"]
[Round "6.24"]
[White "Buchegger, Fridolin"]
[Black "Kienboeck, Benjamin"]
[Result "1-0"]
[ECO "A46"]
[WhiteElo "1961"]
[BlackElo "2151"]
[Annotator "ChessBase"]
[PlyCount "89"]
[EventDate "2022.07.09"]
[EventType "swiss"]
[EventCountry "AUT"]
[SourceTitle "playchess.com"]
[Source "ChessBase"]
[SourceQuality "1"]
[TimeControl "40/5400+30:1800+30"]

1. d4 {[%emt 0:00:14]} Nf6 {[%emt 0:00:10]} 2. Nf3 {[%emt 0:00:20]} d5 {[%emt 0:00:10]} 3. c4 {[%emt 0:00:05]} e6 {[%emt 0:00:10]} 4. g3 {[%emt 0:00:06]} Bd6 {[%emt 0:02:18]} 5. Bg2 {[%emt 0:00:20]} O-O {[%emt 0:00:33]} 6. O-O {[%emt 0:00:16]} Nbd7 {[%emt 0:01:59]} 7. Bf4 {[%emt 0:08:22]} dxc4 {[%emt 0:08:07]} 8. Qc2 {[%emt 0:01:36]} Nd5 {[%emt 0:02:21]} 9. Bxd6 {[%emt 0:02:45]} cxd6 {[%emt 0:00:27]} 10. Qxc4 {[%emt 0:00:47]} b6 {[%emt 0:05:22]} 11. e4 {[%emt 0:14:01]} Ne7 {[%emt 0:02:14]} 12. Nc3 {[%emt 0:01:22]} Bb7 {[%emt 0:03:15]} 13. Rfd1 {[%emt 0:02:37]} d5 {[%emt 0:04:24]} 14. Qe2 {[%emt 0:02:47]} dxe4 {[%emt 0:01:56]} 15. Nxe4 {[%emt 0:00:12]} Bxe4 {[%emt 0:02:39]} 16. Qxe4 {[%emt 0:00:26]} Nf6 {[%emt 0:00:09]} 17. Qb7 {[%emt 0:02:27]} Nfd5 {[%emt 0:12:37]} 18. Ne5 {[%emt 0:02:42]} Qc8 {[%emt 0:03:07]} 19. Qxc8 {[%emt 0:01:40]} Raxc8 {[%emt 0:00:01]} 20. Rac1 {[%emt 0:00:47]} f6 {[%emt 0:08:04]} 21. Nc4 {[%emt 0:01:19]} Rfd8 {[%emt 0:03:54]} 22. Ne3 {[%emt 0:07:55]} Nxe3 {[%emt 0:10:44]} 23. fxe3 {[%emt 0:00:23]} Kf7 {[%emt 0:00:17]} 24. Kf2 {[%emt 0:02:07]} e5 {[%emt 0:13:01]} 25. Rxc8 {[%emt 0:17:10]} Rxc8 {[%emt 0:00:09]} 26. Ke2 {[%emt 0:01:20]} exd4 {[%emt 0:00:40]} 27. exd4 {[%emt 0:00:21]} Ke6 {[%emt 0:05:29]} 28. Kd3 {[%emt 0:02:02]} Kd6 {[%emt 0:01:32]} 29. Re1 {[%emt 0:01:58]} Rf8 {[%emt 0:05:16]} 30. a4 {[%emt 0:12:18]} f5 {[%emt 0:00:26]} 31. a5 {[%emt 0:01:15]} bxa5 {[%emt 0:01:36]} 32. Ra1 {[%emt 0:02:11]} f4 {[%emt 0:01:44]} 33. gxf4 {[%emt 0:00:25]} Rf5 {[%emt 0:00:52]} 34. Be4 {[%emt 0:02:47]} Rh5 {[%emt 0:00:13]} 35. b4 {[%emt 0:04:40]} Rh3+ {[%emt 0:01:18]} 36. Kc4 {[%emt 0:00:21]} axb4 {[%emt 0:00:30]} 37. Ra6+ {[%emt 0:00:42]} Kd7 {[%emt 0:00:01]} 38. Rxa7+ {[%emt 0:00:23]} Ke8 {[%emt 0:00:01]} 39. Kxb4 {[%emt 0:00:46]} Rxh2 {[%emt 0:00:21]} 40. Kc5 {[%emt 0:02:07]} Rh4 {[%emt 0:00:46]} 41. d5 {[%emt 0:16:52]} Rxf4 {[%emt 0:15:24]} 42. Bxh7 {[%emt 0:00:58]} Rh4 {[%emt 0:01:35]} 43. Bd3 {[%emt 0:01:18]} Rh5 {[%emt 0:01:15]} 44. Bb5+ {[%emt 0:01:00]} Kf8 {[%emt 0:06:10]} 45. Ra8+ {[%emt 0:00:15]} 1-0

[Event "41st Jacques-Lemans-Open 2022"]
[Site "St. Veit/Glan"]
[Date "2022.07.13"]
[Round "6.25"]
[White "Blasge, Tobias"]
[Black "Zoernpfenning, Siegfried"]
[Result "1/2-1/2"]
[ECO "D37"]
[WhiteElo "1826"]
[BlackElo "2114"]
[Annotator "ChessBase"]
[PlyCount "68"]
[EventDate "2022.07.09"]
[EventType "swiss"]
[EventCountry "AUT"]
[SourceTitle "playchess.com"]
[Source "ChessBase"]
[SourceQuality "1"]
[TimeControl "40/5400+30:1800+30"]

1. d4 {[%emt 0:00:04]} Nf6 {[%emt 0:00:07]} 2. c4 {[%emt 0:00:03]} e6 {[%emt 0:00:05]} 3. Nf3 {[%emt 0:00:04]} Bb4+ {[%emt 0:00:23]} 4. Bd2 {[%emt 0:00:08]} Be7 {[%emt 0:00:07]} 5. Nc3 {[%emt 0:00:10]} d5 {[%emt 0:00:08]} 6. Bf4 {[%emt 0:00:16]} a6 {[%emt 0:01:01]} 7. c5 {[%emt 0:02:29]} O-O {[%emt 0:00:42]} 8. e3 {[%emt 0:01:01]} Nc6 {[%emt 0:03:32]} 9. a3 {[%emt 0:04:42]} Nh5 {[%emt 0:05:11]} 10. Be5 {[%emt 0:02:24]} f6 {[%emt 0:03:29]} 11. Bg3 {[%emt 0:00:06]} f5 {[%emt 0:01:19]} 12. Ne5 {[%emt 0:13:17]} Nxe5 {[%emt 0:01:52]} 13. Bxe5 {[%emt 0:03:15]} Nf6 {[%emt 0:00:45]} 14. Be2 {[%emt 0:00:32]} Bd7 {[%emt 0:02:19]} 15. f3 {[%emt 0:03:18]} b6 {[%emt 0:01:37]} 16. b4 {[%emt 0:01:33]} bxc5 {[%emt 0:01:10]} 17. bxc5 {[%emt 0:01:27]} Bc6 {[%emt 0:00:30]} 18. Bxf6 {[%emt 0:19:42]} Bxf6 {[%emt 0:00:20]} 19. f4 {[%emt 0:00:24]} Qd7 {[%emt 0:02:53]} 20. Rb1 {[%emt 0:10:04]} g5 {[%emt 0:03:06]} 21. g3 {[%emt 0:00:09]} gxf4 {[%emt 0:00:11]} 22. gxf4 {[%emt 0:00:27]} Kh8 {[%emt 0:00:27]} 23. Rg1 {[%emt 0:06:42]} a5 {[%emt 0:05:59]} 24. Kd2 {[%emt 0:03:16]} Rab8 {[%emt 0:02:45]} 25. Qc2 {[%emt 0:06:26]} Bg7 {[%emt 0:03:13]} 26. Rxb8 {[%emt 0:03:23]} Rxb8 {[%emt 0:00:14]} 27. a4 {[%emt 0:00:07]} Qe7 {[%emt 0:04:14]} 28. Bb5 {[%emt 0:08:03]} Be8 {[%emt 0:01:25]} 29. Bxe8 {[%emt 0:05:07]} Qxe8 {[%emt 0:00:52]} 30. Rb1 {[%emt 0:00:51]} Bf6 {[%emt 0:06:26]} 31. Rxb8 {[%emt 0:03:29]} Qxb8 {[%emt 0:00:07]} 32. Qb1 {[%emt 0:00:09]} Qa8 {[%emt 0:09:44]} 33. Qb5 {[%emt 0:01:53]} c6 {[%emt 0:00:09]} 34. Qb1 {[%emt 0:00:37]} Bd8 {[%emt 0:00:28]} 1/2-1/2

[Event "41st Jacques-Lemans-Open 2022"]
[Site "St. Veit/Glan"]
[Date "2022.07.13"]
[Round "6.26"]
[White "Bauer, Sebastian"]
[Black "Tonel, Giulia"]
[Result "1-0"]
[ECO "E73"]
[WhiteElo "2380"]
[BlackElo "1969"]
[Annotator "ChessBase"]
[PlyCount "49"]
[EventDate "2022.07.09"]
[EventType "swiss"]
[EventCountry "AUT"]
[SourceTitle "playchess.com"]
[Source "ChessBase"]
[SourceQuality "1"]
[TimeControl "40/5400+30:1800+30"]

1. c4 {[%emt 0:00:04]} Nf6 {[%emt 0:01:18]} 2. Nc3 {[%emt 0:00:10]} g6 {[%emt 0:00:12]} 3. e4 {[%emt 0:00:08]} d6 {[%emt 0:00:22]} 4. d4 {[%emt 0:00:06]} Bg7 {[%emt 0:00:41]} 5. Be2 {[%emt 0:00:10]} c5 {[%emt 0:03:13]} 6. d5 {[%emt 0:00:13]} b5 {[%emt 0:03:41]} 7. cxb5 {[%emt 0:00:47]} a6 {[%emt 0:01:06]} 8. Nf3 {[%emt 0:03:46]} O-O {[%emt 0:05:48]} 9. O-O {[%emt 0:00:42]} Nbd7 {[%emt 0:05:34]} 10. h3 {[%emt 0:08:13]} Nb6 {[%emt 0:02:48]} 11. Re1 {[%emt 0:09:21]} Nfd7 {[%emt 0:06:21]} 12. Qc2 {[%emt 0:07:00]} c4 {[%emt 0:03:23]} 13. Be3 {[%emt 0:06:21]} Qc7 {[%emt 0:17:27]} 14. a4 {[%emt 0:05:50]} a5 {[%emt 0:02:41]} 15. Nd4 {[%emt 0:05:24]} Nc5 {[%emt 0:02:01]} 16. Nc6 {[%emt 0:02:51]} f5 {[%emt 0:04:06]} 17. e5 {[%emt 0:07:14]} Bxe5 {[%emt 0:11:51]} 18. Bxc5 {[%emt 0:00:24]} dxc5 {[%emt 0:00:15]} 19. Nxe5 {[%emt 0:00:11]} Qxe5 {[%emt 0:00:24]} 20. Bxc4 {[%emt 0:00:37]} Qd4 {[%emt 0:03:39]} 21. b3 {[%emt 0:06:11]} Nxc4 {[%emt 0:01:56]} 22. bxc4 {[%emt 0:00:18]} Qxc4 {[%emt 0:00:40]} 23. Rxe7 {[%emt 0:00:49]} f4 {[%emt 0:02:24]} 24. Re4 {[%emt 0:00:21]} Bf5 {[%emt 0:00:29]} 25. Rxc4 {[%emt 0:00:05]} 1-0

[Event "41st Jacques-Lemans-Open 2022"]
[Site "St. Veit/Glan"]
[Date "2022.07.13"]
[Round "6.27"]
[White "Kuhn, Maximilian"]
[Black "Sucher, Johannes"]
[Result "0-1"]
[ECO "D11"]
[WhiteElo "1920"]
[BlackElo "2164"]
[Annotator "ChessBase"]
[PlyCount "84"]
[EventDate "2022.07.09"]
[EventType "swiss"]
[EventCountry "AUT"]
[SourceTitle "playchess.com"]
[Source "ChessBase"]
[SourceQuality "1"]
[TimeControl "40/5400+30:1800+30"]

1. d4 {[%emt 0:00:30]} d5 {[%emt 0:00:01]} 2. c4 {[%emt 0:00:04]} c6 {[%emt 0:00:09]} 3. Nf3 {[%emt 0:00:00]} Nf6 {[%emt 0:00:28]} 4. Qc2 {[%emt 0:00:00]} e6 {[%emt 0:01:42]} 5. Nbd2 {[%emt 0:00:00]} Be7 {[%emt 0:01:56]} 6. g3 {[%emt 0:00:08]} O-O {[%emt 0:01:58]} 7. Bg2 {[%emt 0:00:02]} Na6 {[%emt 0:07:11]} 8. O-O {[%emt 0:00:42]} Bd7 {[%emt 0:01:54]} 9. e4 {[%emt 0:04:03]} Rc8 10. e5 {[%emt 0:01:42]} Ne8 {[%emt 0:12:40]} 11. Qb3 {[%emt 0:05:59]} Rb8 {[%emt 0:16:11]} 12. Rd1 {[%emt 0:02:41]} Nec7 {[%emt 0:05:18]} 13. Nf1 {[%emt 0:03:05]} c5 {[%emt 0:04:34]} 14. cxd5 Nxd5 {[%emt 0:00:40]} 15. Ne3 {[%emt 0:04:33]} Bc6 {[%emt 0:01:01]} 16. Bd2 {[%emt 0:07:10]} Nxe3 {[%emt 0:04:36]} 17. Bxe3 {[%emt 0:00:32]} Bd5 {[%emt 0:00:16]} 18. Qc3 {[%emt 0:03:03]} c4 {[%emt 0:00:34]} 19. h4 {[%emt 0:01:10]} b5 {[%emt 0:01:29]} 20. Bg5 {[%emt 0:01:44]} f6 {[%emt 0:02:18]} 21. exf6 {[%emt 0:02:56]} Bxf6 {[%emt 0:00:11]} 22. Bf4 {[%emt 0:00:08]} b4 {[%emt 0:01:05]} 23. Qe3 {[%emt 0:05:23]} Rc8 {[%emt 0:04:46]} 24. Bg5 {[%emt 0:10:03]} Nc7 {[%emt 0:06:13]} 25. Bxf6 {[%emt 0:06:15]} Qxf6 {[%emt 0:00:45]} 26. Ng5 {[%emt 0:01:45]} h6 {[%emt 0:02:27]} 27. Nh3 {[%emt 0:04:42]} Bxg2 {[%emt 0:02:16]} 28. Kxg2 {[%emt 0:00:03]} Nd5 {[%emt 0:00:20]} 29. Qe4 {[%emt 0:00:56]} c3 {[%emt 0:00:22]} 30. b3 {[%emt 0:00:03]} Qf5 {[%emt 0:07:37]} 31. Qe2 {[%emt 0:02:56]} c2 {[%emt 0:01:39]} 32. Re1 {[%emt 0:00:45]} Nc3 {[%emt 0:01:31]} 33. Qd2 {[%emt 0:01:47]} Nb1 {[%emt 0:03:44]} 34. Qe3 {[%emt 0:00:54]} Rc3 {[%emt 0:00:17]} 35. Qc1 {[%emt 0:00:37]} Qd5+ {[%emt 0:02:54]} 36. Kg1 {[%emt 0:00:41]} Qxd4 {[%emt 0:00:27]} 37. Rxb1 {[%emt 0:00:15]} cxb1=Q {[%emt 0:00:14]} 38. Qxb1 {[%emt 0:00:07]} Rxg3+ {[%emt 0:00:24]} 39. Kh2 {[%emt 0:00:20]} Rxh3+ {[%emt 0:00:39]} 40. Kxh3 {[%emt 0:00:10]} Rf3+ {[%emt 0:00:10]} 41. Kg2 {[%emt 0:30:17]} Qxf2+ {[%emt 0:30:07]} 42. Kh1 {[%emt 0:00:03]} Rh3# {[%emt 0:00:41]} 0-1

[Event "41st Jacques-Lemans-Open 2022"]
[Site "St. Veit/Glan"]
[Date "2022.07.13"]
[Round "6.28"]
[White "Praznik, Anton"]
[Black "Erber, Siegfried"]
[Result "1-0"]
[ECO "B10"]
[WhiteElo "2137"]
[BlackElo "1967"]
[Annotator "ChessBase"]
[PlyCount "117"]
[EventDate "2022.07.09"]
[EventType "swiss"]
[EventCountry "AUT"]
[SourceTitle "playchess.com"]
[Source "ChessBase"]
[SourceQuality "1"]
[TimeControl "40/5400+30:1800+30"]

1. e4 {[%emt 0:00:01]} c6 {[%emt 0:00:12]} 2. d3 {[%emt 0:01:05]} d5 {[%emt 0:00:07]} 3. Nd2 {[%emt 0:00:03]} e5 {[%emt 0:01:17]} 4. Ngf3 {[%emt 0:00:10]} Bd6 {[%emt 0:01:05]} 5. d4 {[%emt 0:00:48]} exd4 {[%emt 0:01:39]} 6. exd5 {[%emt 0:01:08]} cxd5 {[%emt 0:01:26]} 7. Nxd4 {[%emt 0:01:49]} Nf6 {[%emt 0:03:39]} 8. Bb5+ {[%emt 0:02:04]} Bd7 {[%emt 0:00:57]} 9. Qe2+ {[%emt 0:01:07]} Qe7 {[%emt 0:03:12]} 10. Bxd7+ {[%emt 0:02:17]} Kxd7 {[%emt 0:04:25]} 11. Qxe7+ {[%emt 0:04:36]} Bxe7 {[%emt 0:00:23]} 12. O-O {[%emt 0:01:46]} Re8 {[%emt 0:02:21]} 13. N2f3 {[%emt 0:06:55]} Bf8 {[%emt 0:07:02]} 14. h3 {[%emt 0:03:24]} Nc6 {[%emt 0:00:52]} 15. Be3 {[%emt 0:01:15]} a6 {[%emt 0:09:03]} 16. Rfd1 {[%emt 0:02:14]} Rad8 {[%emt 0:08:12]} 17. Bg5 {[%emt 0:06:30]} Kc7 {[%emt 0:07:05]} 18. Bxf6 {[%emt 0:03:36]} gxf6 {[%emt 0:02:40]} 19. Kf1 {[%emt 0:01:33]} Bc5 {[%emt 0:05:02]} 20. Nb3 {[%emt 0:10:20]} Bb6 {[%emt 0:05:30]} 21. c3 {[%emt 0:12:25]} Ne5 {[%emt 0:04:31]} 22. Nbd4 {[%emt 0:04:02]} Nxf3 {[%emt 0:09:10]} 23. Nxf3 {[%emt 0:00:25]} Re4 {[%emt 0:02:38]} 24. Rd3 {[%emt 0:01:45]} Rde8 {[%emt 0:01:29]} 25. Rxd5 {[%emt 0:03:25]} Re2 {[%emt 0:01:53]} 26. Rd2 {[%emt 0:00:16]} Rxd2 {[%emt 0:00:21]} 27. Nxd2 {[%emt 0:00:03]} Rd8 {[%emt 0:00:29]} 28. Nf3 {[%emt 0:03:16]} Bc5 {[%emt 0:00:51]} 29. Rc1 {[%emt 0:03:00]} Rd5 {[%emt 0:01:42]} 30. Ke2 {[%emt 0:03:02]} Kd7 {[%emt 0:06:03]} 31. Rc2 {[%emt 0:00:57]} Ke7 {[%emt 0:01:46]} 32. Rd2 {[%emt 0:02:15]} Rxd2+ {[%emt 0:00:26]} 33. Nxd2 {[%emt 0:00:03]} f5 {[%emt 0:00:35]} 34. f4 {[%emt 0:06:30]} Bd6 {[%emt 0:00:57]} 35. g3 {[%emt 0:00:52]} Bc5 {[%emt 0:00:49]} 36. Nf3 {[%emt 0:01:28]} h5 {[%emt 0:02:52]} 37. Ne5 {[%emt 0:03:23]} Ke6 {[%emt 0:01:45]} 38. Nd3 {[%emt 0:01:46]} Bd6 {[%emt 0:01:12]} 39. c4 {[%emt 0:00:55]} Be7 {[%emt 0:00:35]} 40. b4 {[%emt 0:02:04]} Kd6 {[%emt 0:02:21]} 41. Ne5 {[%emt 0:33:24]} Ke6 {[%emt 0:01:29]} 42. Nd3 {[%emt 0:00:00]} Kd6 {[%emt 0:00:23]} 43. Ke3 {[%emt 0:00:00]} b5 {[%emt 0:13:13]} 44. Kd4 {[%emt 0:00:00]} bxc4 {[%emt 0:01:23]} 45. Kxc4 {[%emt 0:00:00]} Kc7 {[%emt 0:03:24]} 46. a4 {[%emt 0:00:00]} Kb6 {[%emt 0:04:15]} 47. h4 {[%emt 0:00:00]} Kb7 {[%emt 0:03:56]} 48. Ne5 {[%emt 0:00:00]} f6 {[%emt 0:01:30]} 49. Nf3 {[%emt 0:00:00]} a5 {[%emt 0:01:11]} 50. b5 {[%emt 0:00:00]} Bb4 {[%emt 0:01:36]} 51. Kd5 {[%emt 0:00:00]} Kb6 {[%emt 0:00:52]} 52. Nd4 {[%emt 0:00:00]} Be1 {[%emt 0:01:04]} 53. Nxf5 {[%emt 0:00:00]} Bf2 {[%emt 0:00:23]} 54. g4 {[%emt 0:00:49]} hxg4 {[%emt 0:00:45]} 55. h5 {[%emt 0:00:03]} Bc5 {[%emt 0:01:24]} 56. h6 {[%emt 0:01:24]} g3 {[%emt 0:00:25]} 57. h7 {[%emt 0:00:54]} g2 {[%emt 0:00:19]} 58. h8=Q {[%emt 0:00:17]} g1=Q {[%emt 0:00:21]} 59. Qb8# {[%emt 0:00:15]} 1-0

[Event "41st Jacques-Lemans-Open 2022"]
[Site "St. Veit/Glan"]
[Date "2022.07.13"]
[Round "6.29"]
[White "Wegerer, Fred"]
[Black "Zaytsev, Alexander"]
[Result "1/2-1/2"]
[ECO "A20"]
[WhiteElo "2137"]
[BlackElo "1963"]
[Annotator "ChessBase"]
[PlyCount "56"]
[EventDate "2022.07.09"]
[EventType "swiss"]
[EventCountry "AUT"]
[SourceTitle "playchess.com"]
[Source "ChessBase"]
[SourceQuality "1"]
[TimeControl "40/5400+30:1800+30"]

1. c4 {[%emt 0:00:05]} e5 {[%emt 0:00:13]} 2. e3 {[%emt 0:00:30]} Nf6 {[%emt 0:02:32]} 3. Nc3 {[%emt 0:02:05]} Nc6 {[%emt 0:00:16]} 4. a3 {[%emt 0:03:16]} d5 {[%emt 0:09:40]} 5. cxd5 {[%emt 0:00:09]} Nxd5 {[%emt 0:00:11]} 6. Qc2 {[%emt 0:04:13]} Be6 {[%emt 0:07:25]} 7. b4 {[%emt 0:06:53]} Bd6 {[%emt 0:12:42]} 8. Bb2 {[%emt 0:02:40]} O-O {[%emt 0:02:59]} 9. Nf3 {[%emt 0:01:05]} Nb6 {[%emt 0:11:24]} 10. Ne4 {[%emt 0:09:11]} f6 {[%emt 0:07:13]} 11. Be2 {[%emt 0:06:15]} Qe7 {[%emt 0:02:08]} 12. h4 {[%emt 0:03:06]} Qf7 {[%emt 0:08:08]} 13. d3 {[%emt 0:26:37]} Bb3 {[%emt 0:03:16]} 14. Qb1 {[%emt 0:00:38]} Rad8 {[%emt 0:02:10]} 15. Nfd2 {[%emt 0:00:19]} Bd5 {[%emt 0:01:48]} 16. Bf3 {[%emt 0:06:57]} Be7 {[%emt 0:01:48]} 17. Qc2 {[%emt 0:03:59]} a6 {[%emt 0:07:17]} 18. Rc1 {[%emt 0:01:48]} Rd7 {[%emt 0:01:19]} 19. Nc4 {[%emt 0:08:17]} Rfd8 {[%emt 0:02:07]} 20. Ke2 {[%emt 0:05:35]} f5 {[%emt 0:05:31]} 21. Nc5 {[%emt 0:06:06]} Bxc5 {[%emt 0:04:45]} 22. bxc5 {[%emt 0:00:10]} Nxc4 {[%emt 0:01:12]} 23. Bxd5 {[%emt 0:00:41]} Qxd5 {[%emt 0:00:34]} 24. Qxc4 {[%emt 0:00:54]} Qxc4 {[%emt 0:00:17]} 25. Rxc4 {[%emt 0:00:07]} Rxd3 {[%emt 0:00:25]} 26. Rc2 {[%emt 0:00:31]} Kf7 {[%emt 0:01:58]} 27. Bc3 {[%emt 0:00:20]} R3d5 {[%emt 0:02:48]} 28. Bd2 {[%emt 0:00:55]} Na7 {[%emt 0:01:27]} 1/2-1/2